[Event "Titled Tuesday Blitz May 24 Late 2022"]
[White "Ezat, Mohamed"]
[Black "Matinian, Nikita"]
[WhiteFideId "10600906"]
[BlackFideId "24129100"]
[WhiteElo "2386"]
[BlackElo "2422"]
[Result "0-1"]
[Round "04"]
[TimeControl "180+1"]
[Date "2022.05.24"]
[WhiteClock "0:00:03"]
[BlackClock "0:00:05"]

1. d4 {[%clk 0:03:00]}  Nf6 {[%clk 0:02:59]} 2. c4 {[%clk 0:03:01]}  g6 {[%clk 0:03:00]} 3. Nc3 {[%clk 0:03:01]}  Bg7 {[%clk 0:03:00]} 4. e4 {[%clk 0:03:01]}  O-O {[%clk 0:03:00]} 5. Be2 {[%clk 0:03:01]}  d6 {[%clk 0:03:01]} 6. Bg5 {[%clk 0:03:01]}  Na6 {[%clk 0:03:00]} 7. Qd2 {[%clk 0:03:00]}  c5 {[%clk 0:02:58]} 8. d5 {[%clk 0:03:01]}  Nc7 {[%clk 0:02:56]} 9. Nf3 {[%clk 0:03:00]}  a6 {[%clk 0:02:54]} 10. a4 {[%clk 0:03:00]}  Rb8 {[%clk 0:02:54]} 11. O-O {[%clk 0:02:59]}  Bd7 {[%clk 0:02:50]} 12. e5 {[%clk 0:02:57]}  dxe5 {[%clk 0:02:48]} 13. Nxe5 {[%clk 0:02:56]}  Nfe8 {[%clk 0:02:28]} 14. Nd3 {[%clk 0:02:56]}  b6 {[%clk 0:02:23]} 15. a5 {[%clk 0:02:55]}  Nd6 {[%clk 0:02:05]} 16. axb6 {[%clk 0:02:52]}  Rxb6 {[%clk 0:02:06]} 17. Nxc5 {[%clk 0:02:51]}  Bf5 {[%clk 0:02:04]} 18. b3 {[%clk 0:02:35]}  Re8 {[%clk 0:01:45]} 19. h3 {[%clk 0:02:30]}  h5 {[%clk 0:01:42]} 20. Rfe1 {[%clk 0:02:25]}  Qc8 {[%clk 0:01:41]} 21. Ra3 {[%clk 0:02:03]}  Ncb5 {[%clk 0:00:42]} 22. Nxb5 {[%clk 0:01:31]}  axb5 {[%clk 0:00:40]} 23. Be3 {[%clk 0:01:22]}  bxc4 {[%clk 0:00:38]} 24. bxc4 {[%clk 0:01:22]}  Rb2 {[%clk 0:00:36]} 25. Qc1 {[%clk 0:01:01]}  Rc2 {[%clk 0:00:34]} 26. Qd1 {[%clk 0:00:55]}  Nxc4 {[%clk 0:00:34]} 27. Bxc4 {[%clk 0:00:53]}  Rxc4 {[%clk 0:00:35]} 28. Nd3 {[%clk 0:00:52]}  Rd8 {[%clk 0:00:20]} 29. Nf4 {[%clk 0:00:51]}  e5 {[%clk 0:00:19]} 30. Ne2 {[%clk 0:00:45]}  Be4 {[%clk 0:00:19]} 31. d6 {[%clk 0:00:43]}  Rc6 {[%clk 0:00:15]} 32. Ng3 {[%clk 0:00:41]}  Rcxd6 {[%clk 0:00:15]} 33. Qxd6 {[%clk 0:00:38]}  Rxd6 {[%clk 0:00:16]} 34. Nxe4 {[%clk 0:00:38]}  Ra6 {[%clk 0:00:13]} 35. Rxa6 {[%clk 0:00:35]}  Qxa6 {[%clk 0:00:14]} 36. Rb1 {[%clk 0:00:35]}  Qa8 {[%clk 0:00:13]} 37. Nd6 {[%clk 0:00:29]}  Bf8 {[%clk 0:00:12]} 38. Nc4 {[%clk 0:00:23]}  Qe4 {[%clk 0:00:12]} 39. Rc1 {[%clk 0:00:23]}  f5 {[%clk 0:00:12]} 40. Nd2 {[%clk 0:00:23]}  Qa8 {[%clk 0:00:12]} 41. Nf3 {[%clk 0:00:23]}  f4 {[%clk 0:00:11]} 42. Bc5 {[%clk 0:00:22]}  Bxc5 {[%clk 0:00:10]} 43. Rxc5 {[%clk 0:00:21]}  e4 {[%clk 0:00:11]} 44. Ne5 {[%clk 0:00:21]}  Qa1+ {[%clk 0:00:11]} 45. Kh2 {[%clk 0:00:21]}  e3 {[%clk 0:00:11]} 46. fxe3 {[%clk 0:00:19]}  fxe3 {[%clk 0:00:12]} 47. Rc8+ {[%clk 0:00:19]}  Kg7 {[%clk 0:00:12]} 48. Rc7+ {[%clk 0:00:19]}  Kf6 {[%clk 0:00:11]} 49. Nf3 {[%clk 0:00:19]}  e2 {[%clk 0:00:09]} 50. Rc6+ {[%clk 0:00:19]}  Ke7 {[%clk 0:00:09]} 51. Rxg6 {[%clk 0:00:16]}  Qf1 {[%clk 0:00:08]} 52. Rg3 {[%clk 0:00:11]}  h4 {[%clk 0:00:05]} 53. Rg7+ {[%clk 0:00:06]}  Kf8 {[%clk 0:00:04]} 54. Rg4 {[%clk 0:00:05]}  Qxf3 {[%clk 0:00:04]} 55. gxf3 {[%clk 0:00:06]}  e1=Q {[%clk 0:00:05]} 56. Kg2 {[%clk 0:00:06]}  Qe2+ {[%clk 0:00:04]} 57. Kg1 {[%clk 0:00:06]}  Qe1+ {[%clk 0:00:05]} 58. Kg2 {[%clk 0:00:06]}  Kf7 {[%clk 0:00:05]} 59. Rf4+ {[%clk 0:00:05]}  Kg6 {[%clk 0:00:05]} 60. Rg4+ {[%clk 0:00:06]}  Kf5 {[%clk 0:00:05]} 61. Re4 {[%clk 0:00:05]}  Qd2+ {[%clk 0:00:05]} 62. Kf1 {[%clk 0:00:04]}  Qd1+ {[%clk 0:00:04]} 63. Kf2 {[%clk 0:00:05]}  Qd2+ {[%clk 0:00:03]} 64. Re2 {[%clk 0:00:05]}  Qg5 {[%clk 0:00:03]} 65. Kf1 {[%clk 0:00:04]}  Qg3 {[%clk 0:00:04]} 66. Rf2 {[%clk 0:00:02]}  Qxh3+ {[%clk 0:00:04]} 67. Ke2 {[%clk 0:00:03]}  Qg3 {[%clk 0:00:04]} 68. Kf1 {[%clk 0:00:02]}  h3 {[%clk 0:00:05]} 69. f4 {[%clk 0:00:02]}  h2 {[%clk 0:00:05]} 70. Rxh2 {[%clk 0:00:03]}  Qxh2 {[%clk 0:00:05]} 0-1


[Site "https://www.chess.com"]

[Event "Titled Tuesday Blitz May 24 Late 2022"]
[White "Fawzy, Adham"]
[Black "Gong, Patrick"]
[WhiteFideId "10613129"]
[BlackFideId "3222500"]
[WhiteElo "2546"]
[BlackElo "2103"]
[Result "0-1"]
[Round "04"]
[TimeControl "180+1"]
[Date "2022.05.24"]
[WhiteClock "0:00:02"]
[BlackClock "0:00:10"]

1. e4 {[%clk 0:03:00]}  d6 {[%clk 0:02:59]} 2. c4 {[%clk 0:03:00]}  Nf6 {[%clk 0:02:55]} 3. Nc3 {[%clk 0:03:00]}  c5 {[%clk 0:02:55]} 4. Nge2 {[%clk 0:03:00]}  Nc6 {[%clk 0:02:51]} 5. d4 {[%clk 0:03:00]}  cxd4 {[%clk 0:02:50]} 6. Nxd4 {[%clk 0:03:01]}  g6 {[%clk 0:02:50]} 7. Be2 {[%clk 0:03:01]}  Nxd4 {[%clk 0:02:50]} 8. Qxd4 {[%clk 0:03:02]}  Bg7 {[%clk 0:02:49]} 9. Be3 {[%clk 0:03:02]}  O-O {[%clk 0:02:48]} 10. Qd2 {[%clk 0:03:01]}  Bd7 {[%clk 0:02:48]} 11. f3 {[%clk 0:03:00]}  Bc6 {[%clk 0:02:47]} 12. O-O {[%clk 0:03:00]}  a5 {[%clk 0:02:44]} 13. b3 {[%clk 0:02:59]}  Nd7 {[%clk 0:02:42]} 14. Rac1 {[%clk 0:02:55]}  Re8 {[%clk 0:02:39]} 15. Rfd1 {[%clk 0:02:55]}  Nc5 {[%clk 0:02:24]} 16. Nd5 {[%clk 0:02:41]}  b6 {[%clk 0:02:09]} 17. Bd4 {[%clk 0:02:38]}  Bxd5 {[%clk 0:01:58]} 18. cxd5 {[%clk 0:02:35]}  Bxd4+ {[%clk 0:01:34]} 19. Qxd4 {[%clk 0:02:36]}  Rf8 {[%clk 0:01:22]} 20. Bb5 {[%clk 0:02:35]}  f5 {[%clk 0:01:21]} 21. e5 {[%clk 0:02:35]}  dxe5 {[%clk 0:01:20]} 22. Qxe5 {[%clk 0:02:36]}  Qd6 {[%clk 0:01:20]} 23. Re1 {[%clk 0:02:33]}  Rad8 {[%clk 0:01:18]} 24. Qxe7 {[%clk 0:02:23]}  Qxe7 {[%clk 0:01:11]} 25. Rxe7 {[%clk 0:02:24]}  Rf7 {[%clk 0:01:11]} 26. Rce1 {[%clk 0:01:58]}  Rxe7 {[%clk 0:01:10]} 27. Rxe7 {[%clk 0:01:59]}  Kf8 {[%clk 0:01:11]} 28. Re5 {[%clk 0:01:28]}  Kg7 {[%clk 0:01:10]} 29. Bc6 {[%clk 0:01:23]}  Kf6 {[%clk 0:01:09]} 30. Re3 {[%clk 0:01:21]}  Rd6 {[%clk 0:01:05]} 31. a3 {[%clk 0:01:19]}  f4 {[%clk 0:00:59]} 32. Rc3 {[%clk 0:01:16]}  Ke5 {[%clk 0:00:59]} 33. b4 {[%clk 0:01:17]}  axb4 {[%clk 0:00:56]} 34. axb4 {[%clk 0:01:18]}  Nd7 {[%clk 0:00:56]} 35. Rc1 {[%clk 0:01:02]}  Kf6 {[%clk 0:00:39]} 36. Kf2 {[%clk 0:00:58]}  Ne5 {[%clk 0:00:38]} 37. Ke2 {[%clk 0:00:59]}  g5 {[%clk 0:00:36]} 38. b5 {[%clk 0:00:56]}  h5 {[%clk 0:00:36]} 39. Ra1 {[%clk 0:00:55]}  Nc4 {[%clk 0:00:28]} 40. Ra8 {[%clk 0:00:54]}  Ne3 {[%clk 0:00:28]} 41. Rb8 {[%clk 0:00:41]}  Nxd5 {[%clk 0:00:27]} 42. Bxd5 {[%clk 0:00:42]}  Rxd5 {[%clk 0:00:28]} 43. Rxb6+ {[%clk 0:00:42]}  Kf5 {[%clk 0:00:28]} 44. Rb8 {[%clk 0:00:40]}  Rc5 {[%clk 0:00:28]} 45. Kd3 {[%clk 0:00:40]}  Rc1 {[%clk 0:00:27]} 46. b6 {[%clk 0:00:38]}  Rb1 {[%clk 0:00:27]} 47. Kc4 {[%clk 0:00:38]}  Kg6 {[%clk 0:00:27]} 48. Kc5 {[%clk 0:00:34]}  Kg7 {[%clk 0:00:27]} 49. h3 {[%clk 0:00:28]}  Rb2 {[%clk 0:00:27]} 50. Kc6 {[%clk 0:00:27]}  Rc2+ {[%clk 0:00:26]} 51. Kd6 {[%clk 0:00:27]}  Rxg2 {[%clk 0:00:25]} 52. Re8 {[%clk 0:00:21]}  Rb2 {[%clk 0:00:24]} 53. Kc7 {[%clk 0:00:22]}  Rc2+ {[%clk 0:00:21]} 54. Kd7 {[%clk 0:00:22]}  Rd2+ {[%clk 0:00:21]} 55. Kc8 {[%clk 0:00:21]}  Rc2+ {[%clk 0:00:19]} 56. Kb8 {[%clk 0:00:22]}  Rc3 {[%clk 0:00:20]} 57. Re5 {[%clk 0:00:20]}  Rb3 {[%clk 0:00:17]} 58. Rxg5+ {[%clk 0:00:20]}  Kf6 {[%clk 0:00:17]} 59. Rxh5 {[%clk 0:00:20]}  Rxb6+ {[%clk 0:00:18]} 60. Kc7 {[%clk 0:00:19]}  Rb3 {[%clk 0:00:18]} 61. Kd6 {[%clk 0:00:12]}  Rxf3 {[%clk 0:00:18]} 62. Rh8 {[%clk 0:00:13]}  Rd3+ {[%clk 0:00:17]} 63. Kc5 {[%clk 0:00:13]}  Kf5 {[%clk 0:00:17]} 64. Kc4 {[%clk 0:00:13]}  Rd6 {[%clk 0:00:17]} 65. h4 {[%clk 0:00:12]}  Kg4 {[%clk 0:00:17]} 66. h5 {[%clk 0:00:12]}  Kg5 {[%clk 0:00:17]} 67. Kc5 {[%clk 0:00:08]}  Rf6 {[%clk 0:00:17]} 68. Kd4 {[%clk 0:00:02]}  f3 {[%clk 0:00:17]} 69. Ke5 {[%clk 0:00:03]}  f2 {[%clk 0:00:13]} 70. Rg8+ {[%clk 0:00:01]}  Kxh5 {[%clk 0:00:12]} 71. Kxf6 {[%clk 0:00:02]}  f1=Q+ {[%clk 0:00:12]} 72. Kg7 {[%clk 0:00:02]}  Qg2+ {[%clk 0:00:10]} 73. Kf7 {[%clk 0:00:03]}  Qd5+ {[%clk 0:00:10]} 74. Kg7 {[%clk 0:00:03]}  Qd7+ {[%clk 0:00:10]} 75. Kf6 {[%clk 0:00:03]}  Qd6+ {[%clk 0:00:10]} 76. Kg7 {[%clk 0:00:02]}  Qe7+ {[%clk 0:00:10]} 77. Kh8 {[%clk 0:00:02]}  Kh6 {[%clk 0:00:11]} 78. Rg6+ {[%clk 0:00:02]}  Kxg6 {[%clk 0:00:10]} 0-1


[Site "https://www.chess.com"]

[Event "Titled Tuesday Blitz May 24 Late 2022"]
[White "Goltsev, Dmitry"]
[Black "Al-Tarboush, Ward"]
[WhiteFideId "24176710"]
[BlackFideId "7601450"]
[WhiteElo "2693"]
[BlackElo "2565"]
[Result "0-1"]
[Round "04"]
[TimeControl "180+1"]
[Date "2022.05.25"]
[WhiteClock "0:00:12"]
[BlackClock "0:00:19"]

1. e4 {[%clk 0:02:52]}  e6 {[%clk 0:02:59]} 2. d4 {[%clk 0:02:52]}  d5 {[%clk 0:02:59]} 3. exd5 {[%clk 0:02:52]}  exd5 {[%clk 0:03:00]} 4. Nf3 {[%clk 0:02:52]}  Bg4 {[%clk 0:02:59]} 5. c4 {[%clk 0:02:48]}  Nc6 {[%clk 0:02:56]} 6. Nc3 {[%clk 0:02:46]}  Bb4 {[%clk 0:02:55]} 7. a3 {[%clk 0:02:40]}  Bxc3+ {[%clk 0:02:43]} 8. bxc3 {[%clk 0:02:41]}  Nf6 {[%clk 0:02:37]} 9. Be2 {[%clk 0:02:27]}  Ne4 {[%clk 0:02:30]} 10. Qb3 {[%clk 0:02:23]}  Na5 {[%clk 0:02:21]} 11. Qb4 {[%clk 0:02:17]}  Nxc4 {[%clk 0:02:08]} 12. Bxc4 {[%clk 0:02:09]}  dxc4 {[%clk 0:02:04]} 13. Ne5 {[%clk 0:02:09]}  Be6 {[%clk 0:01:57]} 14. Qxb7 {[%clk 0:02:00]}  O-O {[%clk 0:01:51]} 15. Qxe4 {[%clk 0:01:58]}  Bd5 {[%clk 0:01:45]} 16. Qg4 {[%clk 0:01:50]}  f6 {[%clk 0:01:38]} 17. Nf3 {[%clk 0:01:47]}  f5 {[%clk 0:01:33]} 18. Qf4 {[%clk 0:01:42]}  Qe8+ {[%clk 0:00:57]} 19. Ne5 {[%clk 0:01:30]}  Bxg2 {[%clk 0:00:53]} 20. Rg1 {[%clk 0:01:15]}  Bd5 {[%clk 0:00:53]} 21. Qg5 {[%clk 0:01:05]}  g6 {[%clk 0:00:52]} 22. h4 {[%clk 0:00:56]}  Rb8 {[%clk 0:00:29]} 23. h5 {[%clk 0:00:51]}  Rb6 {[%clk 0:00:29]} 24. Be3 {[%clk 0:00:38]}  f4 {[%clk 0:00:26]} 25. Bxf4 {[%clk 0:00:35]}  Rbf6 {[%clk 0:00:25]} 26. Be3 {[%clk 0:00:33]}  Rf5 {[%clk 0:00:25]} 27. Qg4 {[%clk 0:00:28]}  Bf3 {[%clk 0:00:12]} 28. Qg3 {[%clk 0:00:16]}  Bxh5 {[%clk 0:00:11]} 29. Nxc4 {[%clk 0:00:11]}  Qb5 {[%clk 0:00:09]} 30. Qxc7 {[%clk 0:00:10]}  R5f7 {[%clk 0:00:08]} 31. Qe5 {[%clk 0:00:08]}  Qxc4 {[%clk 0:00:07]} 32. Qxh5 {[%clk 0:00:08]}  Qxc3+ {[%clk 0:00:07]} 33. Ke2 {[%clk 0:00:07]}  Qc2+ {[%clk 0:00:06]} 34. Ke1 {[%clk 0:00:04]}  Qc3+ {[%clk 0:00:06]} 35. Ke2 {[%clk 0:00:05]}  Qxa1 {[%clk 0:00:01]} 36. Qxg6+ {[%clk 0:00:03]}  hxg6 {[%clk 0:00:01]} 37. Rxa1 {[%clk 0:00:04]}  Re7 {[%clk 0:00:01]} 38. Rg1 {[%clk 0:00:05]}  Rd7 {[%clk 0:00:01]} 39. Rxg6+ {[%clk 0:00:05]}  Kf7 {[%clk 0:00:02]} 40. Rh6 {[%clk 0:00:06]}  Re8 {[%clk 0:00:03]} 41. Rh7+ {[%clk 0:00:07]}  Ke6 {[%clk 0:00:03]} 42. Rh5 {[%clk 0:00:07]}  Kd6 {[%clk 0:00:04]} 43. Kd3 {[%clk 0:00:08]}  Kc6 {[%clk 0:00:04]} 44. Rc5+ {[%clk 0:00:08]}  Kb7 {[%clk 0:00:04]} 45. Rc3 {[%clk 0:00:08]}  a6 {[%clk 0:00:05]} 46. Bf4 {[%clk 0:00:08]}  Rc8 {[%clk 0:00:04]} 47. Rb3+ {[%clk 0:00:09]}  Ka7 {[%clk 0:00:05]} 48. Be5 {[%clk 0:00:09]}  Rf8 {[%clk 0:00:05]} 49. f4 {[%clk 0:00:10]}  Rh7 {[%clk 0:00:04]} 50. Ke4 {[%clk 0:00:10]}  Rh1 {[%clk 0:00:04]} 51. Rc3 {[%clk 0:00:11]}  Re1+ {[%clk 0:00:05]} 52. Kd5 {[%clk 0:00:11]}  Rd8+ {[%clk 0:00:04]} 53. Ke6 {[%clk 0:00:11]}  Rxd4 {[%clk 0:00:03]} 54. Rc7+ {[%clk 0:00:11]}  Kb6 {[%clk 0:00:03]} 55. Rf7 {[%clk 0:00:12]}  Rde4 {[%clk 0:00:03]} 56. Kf5 {[%clk 0:00:12]}  R4e2 {[%clk 0:00:03]} 57. Rd7 {[%clk 0:00:12]}  Kb5 {[%clk 0:00:03]} 58. Rd5+ {[%clk 0:00:12]}  Ka4 {[%clk 0:00:03]} 59. Rd6 {[%clk 0:00:12]}  a5 {[%clk 0:00:03]} 60. Rd3 {[%clk 0:00:10]}  Rf1 {[%clk 0:00:03]} 61. Bd6 {[%clk 0:00:09]}  Rc2 {[%clk 0:00:02]} 62. Rd4+ {[%clk 0:00:10]}  Kb3 {[%clk 0:00:02]} 63. Rd5 {[%clk 0:00:10]}  a4 {[%clk 0:00:02]} 64. Rb5+ {[%clk 0:00:10]}  Ka2 {[%clk 0:00:03]} 65. Rb4 {[%clk 0:00:10]}  Rc6 {[%clk 0:00:03]} 66. Be7 {[%clk 0:00:09]}  Ra6 {[%clk 0:00:04]} 67. Re4 {[%clk 0:00:09]}  Ra5+ {[%clk 0:00:04]} 68. Kg6 {[%clk 0:00:08]}  Rg1+ {[%clk 0:00:04]} 69. Kf7 {[%clk 0:00:08]}  Rf1 {[%clk 0:00:05]} 70. Kf6 {[%clk 0:00:08]}  Ra6+ {[%clk 0:00:05]} 71. Kf5 {[%clk 0:00:07]}  Ra5+ {[%clk 0:00:05]} 72. Kg6 {[%clk 0:00:07]}  Rg1+ {[%clk 0:00:06]} 73. Kf6 {[%clk 0:00:07]}  Rf1 {[%clk 0:00:06]} 74. Ke6 {[%clk 0:00:07]}  Kb3 {[%clk 0:00:06]} 75. Rb4+ {[%clk 0:00:07]}  Kc3 {[%clk 0:00:06]} 76. Re4 {[%clk 0:00:06]}  Ra6+ {[%clk 0:00:07]} 77. Kd5 {[%clk 0:00:06]}  Ra5+ {[%clk 0:00:07]} 78. Ke6 {[%clk 0:00:05]}  Ra6+ {[%clk 0:00:07]} 79. Kf7 {[%clk 0:00:05]}  Ra5 {[%clk 0:00:06]} 80. Bb4+ {[%clk 0:00:05]}  Kd3 {[%clk 0:00:06]} 81. Re6 {[%clk 0:00:02]}  Rf5+ {[%clk 0:00:05]} 82. Ke7 {[%clk 0:00:02]}  R5xf4 {[%clk 0:00:06]} 83. Ra6 {[%clk 0:00:03]}  Rf7+ {[%clk 0:00:06]} 84. Ke8 {[%clk 0:00:04]}  R1f6 {[%clk 0:00:05]} 85. Rxa4 {[%clk 0:00:04]}  Rb7 {[%clk 0:00:05]} 86. Ra5 {[%clk 0:00:04]}  Rh6 {[%clk 0:00:05]} 87. Rd5+ {[%clk 0:00:04]}  Kc4 {[%clk 0:00:05]} 88. Rd8 {[%clk 0:00:04]}  Rh8+ {[%clk 0:00:04]} 89. Bf8 {[%clk 0:00:04]}  Kb5 {[%clk 0:00:04]} 90. Rd5+ {[%clk 0:00:04]}  Kc6 {[%clk 0:00:04]} 91. Rf5 {[%clk 0:00:05]}  Rb5 {[%clk 0:00:04]} 92. Ke7 {[%clk 0:00:06]}  Rxf5 {[%clk 0:00:04]} 93. Bg7 {[%clk 0:00:02]}  Rhh5 {[%clk 0:00:04]} 94. Ke6 {[%clk 0:00:02]}  Kb5 {[%clk 0:00:05]} 95. Bd4 {[%clk 0:00:01]}  Ka4 {[%clk 0:00:06]} 96. Bg7 {[%clk 0:00:02]}  Rb5 {[%clk 0:00:06]} 97. Ke7 {[%clk 0:00:03]}  Rhc5 {[%clk 0:00:07]} 98. Kf6 {[%clk 0:00:04]}  Rc6+ {[%clk 0:00:07]} 99. Kf7 {[%clk 0:00:04]}  Rb7+ {[%clk 0:00:08]} 100. Kg8 {[%clk 0:00:04]}  Rc8+ {[%clk 0:00:08]} 101. Kh7 {[%clk 0:00:04]}  Rxg7+ {[%clk 0:00:09]} 102. Kxg7 {[%clk 0:00:03]}  Kxa3 {[%clk 0:00:10]} 103. Kf7 {[%clk 0:00:04]}  Rc3 {[%clk 0:00:11]} 104. Ke7 {[%clk 0:00:05]}  Kb4 {[%clk 0:00:12]} 105. Kd6 {[%clk 0:00:06]}  Kb5 {[%clk 0:00:12]} 106. Kd5 {[%clk 0:00:06]}  Rd3+ {[%clk 0:00:12]} 107. Ke4 {[%clk 0:00:07]}  Kc4 {[%clk 0:00:13]} 108. Kf4 {[%clk 0:00:07]}  Kd4 {[%clk 0:00:14]} 109. Kf5 {[%clk 0:00:08]}  Re3 {[%clk 0:00:14]} 110. Kf6 {[%clk 0:00:09]}  Re4 {[%clk 0:00:15]} 111. Kf5 {[%clk 0:00:09]}  Kd5 {[%clk 0:00:16]} 112. Kf6 {[%clk 0:00:10]}  Re5 {[%clk 0:00:17]} 113. Kf7 {[%clk 0:00:11]}  Kd6 {[%clk 0:00:17]} 114. Kg6 {[%clk 0:00:12]}  Ke6 {[%clk 0:00:18]} 115. Kg7 {[%clk 0:00:12]}  Rg5+ {[%clk 0:00:18]} 116. Kf8 {[%clk 0:00:12]}  Rg6 {[%clk 0:00:18]} 117. Ke8 {[%clk 0:00:12]}  Rg8# {[%clk 0:00:19]} 0-1


[Site "https://www.chess.com"]

[Event "Titled Tuesday Blitz May 24 Late 2022"]
[White "Gross, Nicholas"]
[Black "Proudian, Armen"]
[WhiteFideId "30921961"]
[BlackFideId "2130734"]
[WhiteElo "1958"]
[BlackElo "2380"]
[Result "0-1"]
[Round "04"]
[TimeControl "180+1"]
[Date "2022.05.25"]
[WhiteClock "0:00:13"]
[BlackClock "0:00:12"]

1. e4 {[%clk 0:02:56]}  e5 {[%clk 0:02:58]} 2. Nf3 {[%clk 0:02:57]}  Nc6 {[%clk 0:02:58]} 3. Bc4 {[%clk 0:02:57]}  Bc5 {[%clk 0:02:58]} 4. b4 {[%clk 0:02:55]}  Bxb4 {[%clk 0:02:57]} 5. c3 {[%clk 0:02:56]}  Ba5 {[%clk 0:02:57]} 6. d4 {[%clk 0:02:55]}  exd4 {[%clk 0:02:55]} 7. O-O {[%clk 0:02:55]}  Nf6 {[%clk 0:02:56]} 8. e5 {[%clk 0:02:45]}  d5 {[%clk 0:02:56]} 9. exf6 {[%clk 0:02:39]}  dxc4 {[%clk 0:02:56]} 10. fxg7 {[%clk 0:02:40]}  Rg8 {[%clk 0:02:55]} 11. Re1+ {[%clk 0:02:34]}  Be6 {[%clk 0:02:55]} 12. Bg5 {[%clk 0:02:31]}  Qd5 {[%clk 0:02:55]} 13. Bf6 {[%clk 0:02:19]}  Qf5 {[%clk 0:02:54]} 14. Bxd4 {[%clk 0:02:16]}  O-O-O {[%clk 0:02:50]} 15. Nbd2 {[%clk 0:02:15]}  Nxd4 {[%clk 0:02:35]} 16. Nxd4 {[%clk 0:02:15]}  Qd5 {[%clk 0:02:29]} 17. Nxe6 {[%clk 0:01:59]}  fxe6 {[%clk 0:02:30]} 18. Ne4 {[%clk 0:01:50]}  Rxg7 {[%clk 0:02:27]} 19. Qe2 {[%clk 0:01:39]}  Bxc3 {[%clk 0:02:17]} 20. Rad1 {[%clk 0:01:38]}  Bd4 {[%clk 0:02:13]} 21. g3 {[%clk 0:01:26]}  e5 {[%clk 0:02:07]} 22. Nd2 {[%clk 0:01:15]}  Rdg8 {[%clk 0:01:54]} 23. Ne4 {[%clk 0:01:00]}  Rg6 {[%clk 0:01:41]} 24. Kg2 {[%clk 0:00:55]}  a6 {[%clk 0:01:20]} 25. f3 {[%clk 0:00:52]}  h5 {[%clk 0:01:21]} 26. Rc1 {[%clk 0:00:47]}  b5 {[%clk 0:01:17]} 27. a4 {[%clk 0:00:45]}  h4 {[%clk 0:01:17]} 28. axb5 {[%clk 0:00:43]}  hxg3 {[%clk 0:01:17]} 29. hxg3 {[%clk 0:00:43]}  axb5 {[%clk 0:01:17]} 30. Qa2 {[%clk 0:00:34]}  Kb7 {[%clk 0:00:42]} 31. Red1 {[%clk 0:00:22]}  Ra6 {[%clk 0:00:27]} 32. Qe2 {[%clk 0:00:21]}  Rga8 {[%clk 0:00:27]} 33. Rc2 {[%clk 0:00:20]}  Ra3 {[%clk 0:00:27]} 34. Rb1 {[%clk 0:00:19]}  Rb3 {[%clk 0:00:17]} 35. g4 {[%clk 0:00:13]}  Rxb1 {[%clk 0:00:15]} 36. Rd2 {[%clk 0:00:12]}  Raa1 {[%clk 0:00:14]} 37. Nc3 {[%clk 0:00:13]}  Rg1+ {[%clk 0:00:14]} 38. Kh3 {[%clk 0:00:13]}  Rh1+ {[%clk 0:00:13]} 39. Qh2 {[%clk 0:00:13]}  Rxh2+ {[%clk 0:00:13]} 40. Kxh2 {[%clk 0:00:13]}  Qxf3 {[%clk 0:00:12]} 0-1


[Site "https://www.chess.com"]

[Event "Titled Tuesday Blitz May 24 Late 2022"]
[White "Gurevich, Dmitry"]
[Black "Ward, Ieuan C"]
[WhiteFideId "2000407"]
[BlackFideId "406627"]
[WhiteElo "2506"]
[BlackElo "2337"]
[Result "1-0"]
[Round "04"]
[TimeControl "180+1"]
[Date "2022.05.25"]
[WhiteClock "0:01:30"]
[BlackClock "0:00:06"]

1. d4 {[%clk 0:03:00]}  Nf6 {[%clk 0:02:58]} 2. c4 {[%clk 0:03:00]}  e6 {[%clk 0:02:58]} 3. Nc3 {[%clk 0:02:58]}  d5 {[%clk 0:02:57]} 4. Bg5 {[%clk 0:02:56]}  Be7 {[%clk 0:02:57]} 5. e3 {[%clk 0:02:56]}  O-O {[%clk 0:02:55]} 6. Rc1 {[%clk 0:02:56]}  h6 {[%clk 0:02:55]} 7. Bh4 {[%clk 0:02:56]}  b6 {[%clk 0:02:54]} 8. cxd5 {[%clk 0:02:54]}  Nxd5 {[%clk 0:02:53]} 9. Bg3 {[%clk 0:02:50]}  Nxc3 {[%clk 0:02:43]} 10. bxc3 {[%clk 0:02:49]}  Bb7 {[%clk 0:02:42]} 11. Nf3 {[%clk 0:02:46]}  c5 {[%clk 0:02:36]} 12. Bd3 {[%clk 0:02:46]}  Nc6 {[%clk 0:02:29]} 13. O-O {[%clk 0:02:45]}  Bd6 {[%clk 0:02:27]} 14. Bb1 {[%clk 0:02:38]}  Bxg3 {[%clk 0:02:22]} 15. hxg3 {[%clk 0:02:36]}  Rc8 {[%clk 0:02:17]} 16. Qd3 {[%clk 0:02:34]}  g6 {[%clk 0:02:17]} 17. Rfd1 {[%clk 0:02:32]}  Qe7 {[%clk 0:02:07]} 18. e4 {[%clk 0:02:32]}  cxd4 {[%clk 0:02:05]} 19. cxd4 {[%clk 0:02:31]}  Rfd8 {[%clk 0:02:04]} 20. Qe3 {[%clk 0:02:29]}  Kg7 {[%clk 0:02:02]} 21. Qf4 {[%clk 0:02:25]}  g5 {[%clk 0:01:41]} 22. Qe3 {[%clk 0:02:25]}  Na5 {[%clk 0:01:13]} 23. e5 {[%clk 0:02:18]}  f5 {[%clk 0:00:47]} 24. exf6+ {[%clk 0:02:17]}  Qxf6 {[%clk 0:00:47]} 25. Qd3 {[%clk 0:02:06]}  Qf5 {[%clk 0:00:46]} 26. Qxf5 {[%clk 0:02:05]}  exf5 {[%clk 0:00:46]} 27. Bxf5 {[%clk 0:02:01]}  Rxc1 {[%clk 0:00:46]} 28. Rxc1 {[%clk 0:02:00]}  Bxf3 {[%clk 0:00:44]} 29. gxf3 {[%clk 0:01:59]}  Rxd4 {[%clk 0:00:44]} 30. Rc7+ {[%clk 0:01:54]}  Kf6 {[%clk 0:00:44]} 31. Be4 {[%clk 0:01:53]}  Ra4 {[%clk 0:00:34]} 32. Rxa7 {[%clk 0:01:52]}  Rxa2 {[%clk 0:00:33]} 33. Rh7 {[%clk 0:01:51]}  Rb2 {[%clk 0:00:16]} 34. Rxh6+ {[%clk 0:01:50]}  Ke5 {[%clk 0:00:12]} 35. Rg6 {[%clk 0:01:49]}  Nc4 {[%clk 0:00:10]} 36. Rxg5+ {[%clk 0:01:47]}  Kf6 {[%clk 0:00:11]} 37. Rg6+ {[%clk 0:01:42]}  Kf7 {[%clk 0:00:11]} 38. Rc6 {[%clk 0:01:41]}  Nd2 {[%clk 0:00:11]} 39. Kg2 {[%clk 0:01:39]}  b5 {[%clk 0:00:10]} 40. g4 {[%clk 0:01:35]}  b4 {[%clk 0:00:10]} 41. g5 {[%clk 0:01:35]}  Kg7 {[%clk 0:00:10]} 42. Rc7+ {[%clk 0:01:34]}  Kf8 {[%clk 0:00:09]} 43. Bd5 {[%clk 0:01:31]}  b3 {[%clk 0:00:06]} 44. g6 {[%clk 0:01:30]} 1-0


[Site "https://www.chess.com"]